bitfinex-derivatives/quotes_BTCF0:USTF0_20241214
["timestamp","ask_amount","ask_price","bid_price","bid_amount"]
[1734198392330,0.47809389,101120.0,101110.0,0.40834692]
[1734198392520,0.47809389,101120.0,101110.0,0.64527244]
[1734198393228,0.3608,101120.0,101110.0,0.64527244]
[1734198395440,0.3613,101120.0,101110.0,0.64527244]
[1734198396928,0.0005,101120.0,101110.0,0.64527244]
[1734198397127,0.3613,101120.0,101110.0,0.64527244]
[1734198399729,0.3613,101120.0,101110.0,0.65486091]
[1734198406227,0.3608,101120.0,101110.0,0.59316102]
[1734198406433,0.3608,101120.0,101110.0,0.47366113]
[1734198406728,0.3608,101120.0,101110.0,0.53536102]
[1734198407732,0.3608,101120.0,101110.0,0.47366113]
[1734198407936,0.410244,101120.0,101110.0,0.42420813]
[1734198408244,0.410244,101120.0,101110.0,0.23939403]
[1734198409434,0.410244,101120.0,101110.0,0.28884303]
[1734198410538,0.52753789,101120.0,101110.0,0.28884303]
[1734198410847,0.88923778,101120.0,101100.0,0.46407166]
[1734198411035,0.58923778,101120.0,101110.0,0.06169989]
[1734198411341,0.95003778,101120.0,101110.0,0.06169989]
[1734198411730,1.0965121,101120.0,101110.0,0.06169989]
[1734198411934,0.95003778,101120.0,101110.0,0.11114889]
[1734198412643,1.03481221,101120.0,101110.0,0.11114889]
[1734198413842,0.049449,101110.0,101100.0,0.41461966]
[1734198414049,0.64944278,101110.0,101100.0,0.1776162]
[1734198414339,0.049454,101100.0,101090.0,0.46399872]
[1734198414545,0.47195389,101100.0,101090.0,0.50727862]
[1734198415141,0.410254,101100.0,101090.0,0.46399872]
[1734198415340,0.410254,101100.0,101090.0,0.46449872]
[1734198416142,0.410254,101100.0,101090.0,0.28688252]
[1734198416357,0.410254,101100.0,101090.0,0.28638252]
[1734198416642,0.410254,101100.0,101090.0,0.46403663]
[1734198416643,0.52754789,101100.0,101090.0,0.46403663]
[1734198416843,0.67402221,101100.0,101090.0,0.22711111]
[1734198417248,0.67402221,101100.0,101090.0,0.22761111]
[1734198417548,0.52754789,101100.0,101090.0,0.049957]
[1734198418045,0.53716991,101100.0,101090.0,0.049957]
[1734198418347,0.53716991,101100.0,101090.0,0.049457]
[1734198419244,0.53716991,101100.0,101090.0,0.049957]
[1734198420247,0.53716991,101100.0,101090.0,0.049457]
[1734198420642,0.53716991,101100.0,101090.0,0.14341037]
[1734198421243,0.53716991,101100.0,101090.0,0.14391037]
[1734198421745,0.53716991,101100.0,101090.0,0.20551037]
[1734198421943,0.53716991,101100.0,101090.0,0.26501037]
[1734198422247,0.53716991,101100.0,101090.0,0.44216448]
[1734198422450,0.41987602,101100.0,101090.0,0.44216448]
[1734198422747,0.3608,101100.0,101090.0,0.44216448]
[1734198423343,0.3608,101100.0,101090.0,0.44266448]
[1734198425140,0.3608,101100.0,101090.0,0.58563663]
[1734198425343,0.410254,101100.0,101090.0,0.53617963]
[1734198425644,0.410254,101100.0,101090.0,0.17815411]
[1734198425846,0.52754789,101100.0,101090.0,0.17815411]
[1734198426246,0.52754789,101100.0,101090.0,0.0005]
[1734198427255,0.410254,101100.0,101090.0,0.0005]
[1734198427842,0.410254,101100.0,101090.0,0.14391237]
[1734198428245,0.410254,101100.0,101090.0,0.32156648]
[1734198428850,0.410254,101100.0,101090.0,0.0005]
[1734198429056,0.52754789,101100.0,101090.0,0.0005]
[1734198430249,0.52754789,101100.0,101080.0,0.54923048]
[1734198430552,0.3608,101090.0,101080.0,0.54304907]
[1734198431253,0.3608,101090.0,101080.0,0.54354907]
[1734198432354,0.3608,101090.0,101080.0,0.54304907]
[1734198432753,0.3608,101090.0,101080.0,0.77997459]
[1734198433256,0.3608,101090.0,101080.0,0.54354907]
[1734198433457,0.3608,101090.0,101080.0,0.78047459]
[1734198433659,0.3608,101090.0,101080.0,0.737194]
[1734198434358,0.3608,101090.0,101080.0,0.736694]
[1734198435457,0.3608,101090.0,101080.0,0.737194]
[1734198436252,0.3608,101090.0,101080.0,0.736694]
[1734198436957,0.3608,101090.0,101080.0,0.736693]
[1734198437156,0.3608,101090.0,101080.0,0.73659731]
[1734198437358,0.3608,101090.0,101080.0,0.78041688]
[1734198437854,0.47809389,101100.0,101090.0,0.049459]
[1734198438057,0.47809389,101100.0,101090.0,0.32101122]
[1734198438261,0.47809389,101100.0,101090.0,0.36428856]
[1734198438454,0.47809389,101100.0,101090.0,0.32101122]
[1734198438950,0.47809389,101100.0,101090.0,0.55793674]
[1734198439370,0.47809389,101100.0,101090.0,0.46398337]
[1734198439652,0.47809389,101100.0,101090.0,0.22705785]
[1734198439863,0.52754789,101100.0,101090.0,0.17759885]
[1734198440251,0.67402221,101100.0,101090.0,0.17759885]
[1734198441455,0.55672832,101100.0,101090.0,0.17759885]
[1734198442054,0.55672832,101100.0,101090.0,0.22705785]
[1734198442454,0.65068169,101100.0,101090.0,0.22705785]
[1734198442658,0.55672832,101100.0,101090.0,0.22705785]
[1734198442958,0.82663784,101100.0,101080.0,0.58278637]
[1734198443162,0.82663784,101100.0,101080.0,0.62606946]
[1734198443163,0.53634365,101090.0,101080.0,0.62606946]
[1734198443462,0.67401491,101090.0,101080.0,0.62606946]
[1734198443860,0.67401491,101090.0,101080.0,0.45780746]
[1734198444158,0.049464,101080.0,101070.0,0.45831277]
[1734198444358,0.83056795,101080.0,101070.0,0.22088834]
[1734198444555,0.83056795,101080.0,101070.0,0.04328949]
[1734198444756,1.0065241,101080.0,101070.0,0.04328949]
[1734198445356,1.0065241,101080.0,101070.0,0.04378949]
[1734198445552,0.83056795,101080.0,101070.0,0.04378949]
[1734198445753,0.83056795,101080.0,101070.0,0.0005]
[1734198446354,0.049469,101070.0,101060.0,0.39464353]
[1734198446554,0.52739939,101070.0,101060.0,0.39464353]
[1734198446955,0.52739939,101070.0,101060.0,0.39315934]
[1734198447363,0.52739939,101070.0,101060.0,0.34986985]
[1734198447859,0.410269,101070.0,101060.0,0.34986985]
[1734198448060,0.52739939,101070.0,101060.0,0.34986985]
[1734198448267,0.410269,101070.0,101060.0,0.34986985]
[1734198450563,0.50422237,101070.0,101060.0,0.17759885]
[1734198450865,0.049474,101060.0,101050.0,0.46410435]
[1734198451064,0.410274,101060.0,101050.0,0.46410435]
[1734198451365,0.410274,101060.0,101050.0,0.22717883]
[1734198454562,0.410274,101060.0,101050.0,0.04957998]
[1734198455462,0.410274,101060.0,101050.0,0.05007998]
[1734198455961,0.42036124,101060.0,101050.0,0.05007998]
[1734198456575,0.3608,101060.0,101050.0,0.14403335]
[1734198456868,0.3608,101060.0,101050.0,0.3216322]
[1734198457067,0.3608,101060.0,101050.0,0.14403335]
[1734198457658,0.3608,101060.0,101050.0,0.3216322]
[1734198457859,0.3608,101070.0,101060.0,0.049474]
[1734198458061,0.3608,101070.0,101060.0,0.36631686]
[1734198458469,0.3608,101070.0,101060.0,0.50062622]
[1734198460760,0.3608,101070.0,101060.0,0.54391571]
[1734198462374,0.410269,101070.0,101060.0,0.40048834]
[1734198462673,0.410269,101070.0,101060.0,0.27236349]
[1734198462868,0.410269,101070.0,101060.0,0.28244991]
[1734198463368,0.410269,101070.0,101060.0,0.46004876]
[1734198463569,0.410269,101070.0,101060.0,0.41675927]
[1734198464872,0.410269,101070.0,101060.0,0.40667285]
[1734198465063,0.410269,101070.0,101060.0,0.34427285]
[1734198465266,0.410269,101070.0,101060.0,0.29479885]
[1734198465571,0.410269,101070.0,101050.0,0.2375285]
[1734198465572,0.410269,101070.0,101050.0,0.50789384]
[1734198465765,0.3608,101060.0,101050.0,0.50789384]
[1734198466966,0.3608,101060.0,101050.0,0.46460435]
[1734198466967,0.410274,101060.0,101050.0,0.46460435]
[1734198467768,0.410274,101060.0,101050.0,0.55855772]
[1734198467769,0.3608,101060.0,101050.0,0.55855772]
[1734198467971,0.3608,101060.0,101050.0,0.55844296]
[1734198468170,0.3608,101060.0,101050.0,0.38095887]
[1734198468369,0.3608,101060.0,101050.0,0.42424836]
[1734198468567,0.3608,101060.0,101050.0,0.60177277]
[1734198468763,0.3608,101060.0,101050.0,0.42424836]
[1734198470261,0.3608,101060.0,101050.0,0.72086492]
[1734198470466,0.3608,101060.0,101050.0,0.72036492]
[1734198471776,0.3608,101060.0,101050.0,0.94433514]
[1734198472172,0.3608,101060.0,101050.0,0.70740962]
[1734198472679,0.2608,101060.0,101050.0,0.70740962]
[1734198472972,0.52740039,101070.0,101050.0,0.70740962]
[1734198473176,0.52740039,101070.0,101060.0,0.41484599]
[1734198473373,0.52740039,101070.0,101060.0,0.45813548]
[1734198474275,0.47793039,101070.0,101060.0,0.32981834]
[1734198474480,0.47793039,101070.0,101060.0,0.45331834]
[1734198474876,0.47793039,101070.0,101060.0,0.41002885]
[1734198475071,0.47793039,101070.0,101060.0,0.70664541]
[1734198475377,0.47793039,101070.0,101060.0,0.41002885]
[1734198475585,0.47793039,101070.0,101060.0,0.45331956]
[1734198477973,0.47793039,101070.0,101060.0,0.63118205]
[1734198478177,0.47793039,101070.0,101060.0,0.45331956]
[1734198478376,0.47793039,101070.0,101060.0,0.6311809]
[1734198478576,0.47793039,101070.0,101060.0,0.45331956]
[1734198478985,0.47793039,101070.0,101060.0,0.63118123]
[1734198479173,0.47793039,101070.0,101060.0,0.69286345]
[1734198480684,0.53961261,101070.0,101060.0,0.63118123]
[1734198480882,0.58908161,101070.0,101060.0,0.56918123]
[1734198481485,0.58908161,101070.0,101060.0,0.56918087]
[1734198483291,0.58908161,101070.0,101060.0,0.39131956]
[1734198483683,0.58922213,101070.0,101060.0,0.39145553]
[1734198484576,0.73581077,101070.0,101060.0,0.50786173]
[1734198486292,0.61853986,101070.0,101060.0,0.50786173]
[1734198490692,0.61853986,101070.0,101060.0,0.32995553]
[1734198490991,0.61853986,101070.0,101060.0,0.28666482]
[1734198491884,0.61853986,101070.0,101060.0,0.34834704]
[1734198492282,0.50738864,101070.0,101060.0,0.34834704]
[1734198492492,0.62473066,101070.0,101060.0,1.0282387]
[1734198492693,0.47814202,101070.0,101060.0,1.0282387]
[1734198493196,0.47814202,101070.0,101060.0,1.0280786]
[1734198494489,0.47814202,101070.0,101060.0,0.98478789]
[1734198494793,0.47814202,101070.0,101060.0,1.02807871]
[1734198495384,0.47814202,101070.0,101060.0,0.79088673]
[1734198497189,0.47814202,101070.0,101060.0,0.80068943]
[1734198497389,0.47814202,101070.0,101060.0,0.76995063]
[1734198497593,0.73588188,101070.0,101060.0,0.41177989]
[1734198497793,0.67419966,101070.0,101060.0,0.47346211]
[1734198498100,0.52761102,101070.0,101060.0,0.47346211]
[1734198498394,0.52761102,101070.0,101060.0,0.46365941]
[1734198498799,0.67419966,101070.0,101060.0,0.50694907]
[1734198499295,0.52761102,101070.0,101060.0,0.50694907]
[1734198499598,0.52761102,101070.0,101060.0,1.02794687]
[1734198500101,0.52761102,101070.0,101060.0,0.79064368]
[1734198500295,0.52761102,101070.0,101060.0,1.0279484]
[1734198500798,0.52761102,101070.0,101060.0,0.79064368]
[1734198501184,0.52761102,101070.0,101060.0,1.02794744]
[1734198501395,0.47814202,101070.0,101060.0,1.02794744]
[1734198501692,0.47814202,101070.0,101060.0,1.02747649]
[1734198503990,0.47814202,101070.0,101060.0,0.96579427]
[1734198504196,0.47814202,101070.0,101060.0,1.02747649]
[1734198507199,0.56611661,101070.0,101060.0,1.02747649]
[1734198508104,0.47814202,101070.0,101060.0,1.02747649]
[1734198509897,0.62473066,101070.0,101060.0,0.80343816]
[1734198510105,0.47814202,101070.0,101060.0,0.80343816]
[1734198510298,0.47814202,101070.0,101060.0,1.02774094]
[1734198510495,0.47814202,101070.0,101060.0,1.02774073]
[1734198511496,0.56612109,101070.0,101060.0,1.02774073]
[1734198511696,0.47814202,101070.0,101060.0,1.02774073]
[1734198513803,0.52761102,101070.0,101060.0,1.02774073]
[1734198514203,0.52761102,101070.0,101060.0,1.02776882]
[1734198516212,0.58651102,101070.0,101060.0,0.91256882]
[1734198516699,0.53704202,101070.0,101060.0,0.91256882]
[1734198516900,0.47814202,101070.0,101060.0,0.91256882]
[1734198517205,0.52761102,101070.0,101060.0,0.91256882]
[1734198517401,0.67419966,101070.0,101060.0,0.91275489]
[1734198517602,0.67419966,101070.0,101060.0,0.62655594]
[1734198517802,0.67419966,101070.0,101060.0,0.68823816]
[1734198517997,0.52761102,101070.0,101060.0,0.91276925]
[1734198518805,0.67419966,101070.0,101060.0,0.85108703]
[1734198519004,0.67419966,101070.0,101060.0,0.62655594]
[1734198520503,0.55685764,101070.0,101060.0,0.33006742]
[1734198520712,0.61205764,101070.0,101060.0,0.33006742]
[1734198521105,0.67373986,101070.0,101060.0,0.33006742]
[1734198521516,0.67373986,101070.0,101060.0,0.62655594]
[1734198521714,0.72813986,101070.0,101060.0,0.62655594]
[1734198523709,0.72813986,101070.0,101060.0,0.33006742]
[1734198525115,0.66645764,101070.0,101060.0,0.39174964]
[1734198526505,0.55685764,101070.0,101060.0,0.68823816]
[1734198527612,0.61853986,101070.0,101060.0,0.33006742]
[1734198528009,0.55685764,101070.0,101060.0,0.33006742]
[1734198528320,0.61853986,101070.0,101060.0,0.33006742]
[1734198529721,0.67653986,101070.0,101060.0,0.33006742]
[1734198532612,1.03733986,101070.0,101060.0,0.33006742]
[1734198534217,1.09623986,101070.0,101060.0,0.33006742]
[1734198535012,1.09623986,101070.0,101060.0,0.39174964]
[1734198535824,1.03455764,101070.0,101060.0,0.39174964]
[1734198536505,1.15191634,101070.0,101060.0,0.68823816]
[1734198536916,1.15191634,101070.0,101060.0,0.91295992]
[1734198537307,1.15191634,101070.0,101060.0,0.68823816]
[1734198537720,1.15191634,101070.0,101060.0,0.9127174]
[1734198538110,1.15191634,101070.0,101060.0,0.68823816]
[1734198538318,1.15191634,101070.0,101060.0,0.91271284]
[1734198542712,1.03455764,101070.0,101060.0,0.68823816]
[1734198543412,1.03455764,101070.0,101060.0,0.91338673]
[1734198548122,1.03455764,101070.0,101060.0,0.68823816]
[1734198548328,1.03455764,101070.0,101060.0,0.91389319]
[1734198548825,0.91765764,101070.0,101060.0,0.91389319]
[1734198552622,0.91765764,101070.0,101060.0,0.91417913]
[1734198554019,0.97933986,101070.0,101060.0,0.28073879]
[1734198554229,1.09443986,101070.0,101060.0,0.23744913]
[1734198555728,1.09443986,101070.0,101060.0,0.45880171]
[1734198556016,1.27034623,101070.0,101060.0,0.52048393]
[1734198556222,1.27034623,101070.0,101060.0,0.45880171]
[1734198556925,1.20866401,101070.0,101060.0,0.56995793]
[1734198557124,1.20866401,101070.0,101060.0,0.39189991]
[1734198557125,1.03275764,101070.0,101060.0,0.39189991]
[1734198557430,0.91765764,101070.0,101060.0,0.39189991]
[1734198557825,0.91765764,101070.0,101060.0,0.33021769]
[1734198557826,0.97933986,101070.0,101060.0,0.33021769]
[1734198558026,0.97933986,101070.0,101060.0,0.39189991]
[1734198558226,1.15524623,101070.0,101060.0,0.5699329]
[1734198558430,0.97933986,101070.0,101060.0,0.5699329]
[1734198559537,0.97933986,101070.0,101060.0,0.50825068]
[1734198560826,1.15524623,101070.0,101060.0,0.50825068]
[1734198561339,0.97933986,101070.0,101060.0,0.50825068]
[1734198562135,0.25773986,101070.0,101060.0,0.50825068]
[1734198562338,0.97933986,101070.0,101060.0,0.50825068]
[1734198563040,0.97933986,101070.0,101060.0,0.5699329]
[1734198563227,0.97933986,101070.0,101060.0,0.39189991]
[1734198563430,0.97933986,101070.0,101060.0,0.33021769]
[1734198564229,0.91765764,101070.0,101060.0,0.39189991]
[1734198565534,0.86818864,101070.0,101060.0,0.45358213]
[1734198565730,0.98554848,101070.0,101060.0,0.61730713]
[1734198565937,0.98554848,101070.0,101060.0,0.91379565]
[1734198567839,0.98554848,101070.0,101060.0,0.97547787]
[1734198568041,0.26394848,101070.0,101060.0,0.91379565]
[1734198568233,0.47815984,101070.0,101060.0,0.92384662]
[1734198569033,0.47815984,101070.0,101060.0,0.68639749]
[1734198569337,0.47815984,101070.0,101060.0,0.62471527]
[1734198569542,0.47815984,101070.0,101060.0,0.68639749]
[1734198569730,0.62474848,101070.0,101060.0,0.92370847]
[1734198570740,0.47815984,101070.0,101060.0,0.92370847]
[1734198571043,0.62474848,101070.0,101060.0,0.92370847]
[1734198572146,0.7358997,101070.0,101060.0,0.28060554]
[1734198572334,0.61853986,101070.0,101060.0,0.50807638]
[1734198574942,0.55685764,101070.0,101060.0,0.5697586]
[1734198576342,0.55685764,101070.0,101060.0,0.56975385]
[1734198576642,0.67421527,101070.0,101060.0,0.39176176]
[1734198576944,0.67421527,101070.0,101060.0,0.68825028]
[1734198577246,0.67421527,101070.0,101060.0,0.39176176]
[1734198579146,0.67421605,101070.0,101060.0,0.39176176]
[1734198579845,0.55685764,101070.0,101060.0,0.33007954]
[1734198580044,0.55685764,101070.0,101060.0,0.50807587]
[1734198580440,0.61853986,101070.0,101060.0,0.41530731]
[1734198580635,0.61853986,101070.0,101060.0,0.45860187]
[1734198580636,0.85384623,101070.0,101060.0,0.45860187]
[1734198581447,0.67793986,101070.0,101060.0,0.45860187]
[1734198581849,0.70725759,101070.0,101060.0,0.22129089]
[1734198583144,0.853938,101070.0,101060.0,0.22129089]
[1734198586251,0.853938,101070.0,101060.0,0.17799633]
[1734198587849,0.853938,101070.0,101060.0,0.22129293]
[1734198588043,0.853938,101070.0,101060.0,0.17799633]
[1734198589746,0.853938,101070.0,101060.0,0.22129317]
[1734198590149,0.853938,101070.0,101060.0,0.17799633]
[1734198592142,1.214738,101070.0,101060.0,0.17799633]
[1734198592543,1.03883163,101070.0,101060.0,0.221293]
[1734198592953,1.214738,101070.0,101060.0,0.221293]
[1734198595058,1.03883163,101070.0,101060.0,0.221293]
[1734198595258,1.03883163,101070.0,101060.0,0.17799633]
[1734198596547,1.214738,101070.0,101060.0,0.22129317]
[1734198596753,1.214738,101070.0,101060.0,0.17799633]
[1734198597256,0.049475,101060.0,101050.0,0.34499296]
[1734198597459,0.58923753,101060.0,101050.0,0.3887898]
[1734198598557,0.58923753,101060.0,101050.0,0.3882898]
[1734198599553,0.73591794,101060.0,101050.0,0.3887898]
[1734198599761,0.73591794,101060.0,101050.0,0.56671932]
[1734198600551,0.73591794,101060.0,101050.0,0.56621932]
[1734198601054,0.73591794,101060.0,101050.0,0.51674032]
[1734198601566,0.73591794,101060.0,101050.0,0.51724032]
[1734198602561,0.73591794,101060.0,101050.0,0.51674032]
[1734198603770,0.73591794,101060.0,101050.0,0.51724032]
[1734198605469,0.73594274,101060.0,101050.0,0.51724032]
[1734198605659,0.61863763,101060.0,101050.0,0.51724032]
[1734198605860,0.7359487,101060.0,101050.0,0.3393108]
[1734198606873,0.58926829,101060.0,101050.0,0.3393108]
[1734198607465,0.59896611,101060.0,101050.0,0.3393108]
[1734198608360,0.74564652,101060.0,101050.0,0.3393108]
[1734198608867,0.62833545,101060.0,101050.0,0.3393108]
[1734198609058,0.74567413,101060.0,101050.0,0.3393108]
[1734198609254,0.56665323,101060.0,101050.0,0.3393108]
[1734198609454,0.62833545,101060.0,101050.0,0.3393108]
[1734198609656,0.74569144,101060.0,101050.0,0.3393108]
[1734198610266,0.62833545,101060.0,101050.0,0.3393108]
[1734198610569,0.74570367,101060.0,101050.0,0.3393108]
[1734198611364,0.62833545,101060.0,101050.0,0.63579932]
[1734198611566,0.74571131,101060.0,101050.0,0.63579932]
[1734198611864,0.74571131,101060.0,101050.0,0.86416441]
[1734198612666,0.74571131,101060.0,101050.0,0.86319817]
[1734198614961,0.62833545,101060.0,101050.0,0.3388108]
[1734198617471,0.62833545,101060.0,101050.0,0.3882888]
[1734198619165,0.56665323,101060.0,101050.0,0.44997102]
[1734198619363,0.62833545,101060.0,101050.0,0.44997102]
[1734198620078,0.62833545,101060.0,101050.0,0.74645954]
[1734198620374,0.62833545,101060.0,101050.0,0.63529932]
[1734198621078,0.62833545,101060.0,101050.0,0.3388108]
[1734198622164,0.56665323,101060.0,101050.0,0.40049302]
[1734198622372,0.62833545,101060.0,101050.0,0.44997102]
[1734198622574,0.62833545,101060.0,101050.0,0.3882888]
[1734198624173,0.62833545,101060.0,101050.0,0.68477732]
[1734198624364,0.62833545,101060.0,101050.0,0.3882888]
[1734198624572,0.62833545,101060.0,101050.0,0.68477732]
[1734198624775,0.62833545,101060.0,101050.0,0.74645954]
[1734198624970,0.74571445,101060.0,101050.0,0.97356322]
[1734198626073,0.74571445,101060.0,101050.0,0.73625224]
[1734198626282,0.68403223,101060.0,101050.0,0.73625224]
[1734198626775,0.68403223,101060.0,101050.0,0.67457002]
[1734198626975,0.68403223,101060.0,101050.0,0.73625224]
[1734198627572,0.74571445,101060.0,101050.0,0.73625224]
[1734198628978,0.74571445,101060.0,101050.0,0.67457002]
[1734198629174,0.80739667,101060.0,101050.0,0.56699202]
[1734198629484,0.62833545,101060.0,101050.0,0.28081556]
[1734198633469,0.69001767,101060.0,101050.0,0.28081556]
[1734198634472,0.69001767,101060.0,101050.0,0.45889229]
[1734198634676,0.69001767,101060.0,101050.0,0.28081556]
[1734198635083,0.69001767,101060.0,101050.0,0.45889497]
[1734198635280,0.86592404,101060.0,101050.0,0.45889497]
[1734198635471,0.80424182,101060.0,101050.0,0.45889497]
[1734198636881,0.86592404,101060.0,101050.0,0.45889497]
[1734198637180,0.69001767,101060.0,101050.0,0.28081556]
[1734198637380,0.69001767,101060.0,101050.0,0.45887821]
[1734198637585,0.62833545,101060.0,101050.0,0.415579]
[1734198637794,0.69001767,101060.0,101050.0,0.4155809]
[1734198638286,0.86592404,101060.0,101050.0,0.41558177]
[1734198638581,0.049478,101050.0,101040.0,0.258254]
[1734198638784,0.61863667,101050.0,101040.0,0.30155885]
[1734198639191,0.61863667,101050.0,101040.0,0.258254]
[1734198639580,0.64786659,101050.0,101040.0,0.021333]
[1734198639782,0.64786659,101050.0,101040.0,0.070816]
[1734198640285,0.64786659,101050.0,101040.0,0.13249822]
[1734198640479,0.79445128,101050.0,101040.0,0.13249822]
[1734198640675,0.79445128,101050.0,101040.0,0.13199822]
[1734198640676,0.61854491,101050.0,101040.0,0.13199822]
[1734198641279,0.61854491,101050.0,101040.0,0.070316]
[1734198641580,0.61854491,101050.0,101040.0,0.070816]
[1734198641774,0.61854491,101050.0,101040.0,0.021333]
[1734198642674,0.61854491,101050.0,101040.0,0.020833]
[1734198643581,0.61854491,101050.0,101040.0,0.06463675]
[1734198644179,0.61854491,101050.0,101040.0,0.021333]
[1734198644578,0.61854491,101050.0,101040.0,0.020833]
[1734198645579,0.61854491,101050.0,101040.0,0.021333]
[1734198646586,0.61854491,101050.0,101040.0,0.020833]
[1734198647592,0.61854491,101050.0,101040.0,0.021333]
[1734198648084,0.47196022,101050.0,101040.0,0.021333]
[1734198648594,0.47196022,101050.0,101040.0,0.020833]
[1734198649691,0.47196022,101050.0,101040.0,0.021333]
[1734198651887,0.73570339,101050.0,101040.0,0.06463675]
[1734198652688,0.73570339,101050.0,101040.0,0.06413675]
[1734198653589,0.73570339,101050.0,101040.0,0.020833]
[1734198653787,0.61854491,101050.0,101040.0,0.020833]
[1734198655286,0.68022713,101050.0,101040.0,0.020833]
[1734198657988,0.70954881,101050.0,101040.0,0.020833]
[1734198658181,0.049483,101040.0,101030.0,0.0005]
[1734198658392,0.84907936,101040.0,101030.0,0.0005]
[1734198658597,0.049488,101030.0,101020.0,0.00148449]
[1734198658798,0.58910299,101030.0,101020.0,0.00148449]
[1734198658984,0.58910299,101030.0,101020.0,0.05097749]
[1734198659186,0.58910299,101030.0,101020.0,0.049493]
[1734198659583,0.53961499,101030.0,101010.0,0.09850969]
[1734198659790,0.55980961,101020.0,101010.0,0.16637822]
[1734198660389,0.55980961,101020.0,101010.0,0.20968791]
[1734198660597,0.67694238,101020.0,101010.0,0.16637822]
[1734198660787,0.67694238,101020.0,101010.0,0.17617424]
[1734198661096,0.67701422,101020.0,101010.0,0.17617424]
[1734198661291,0.73869644,101020.0,101010.0,0.0552]
[1734198661498,0.58917983,101020.0,101010.0,0.0552]
[1734198662597,0.67696295,101020.0,101010.0,0.104698]
[1734198662897,0.67696295,101020.0,101010.0,0.16638022]
[1734198663397,0.61528073,101020.0,101010.0,0.16638022]
[1734198664091,0.55983018,101020.0,101010.0,0.14800769]
[1734198664296,0.55983018,101020.0,101010.0,0.20968991]
[1734198664593,0.67696295,101020.0,101010.0,0.16688022]
[1734198664998,0.67696295,101020.0,101010.0,0.21019405]
[1734198666292,0.67696295,101020.0,101010.0,0.14851183]
[1734198667092,0.67696295,101020.0,101010.0,0.21019405]
[1734198667892,0.58917983,101020.0,101010.0,0.105198]
[1734198668491,0.65086205,101020.0,101010.0,0.0557]
[1734198668796,0.58917983,101020.0,101010.0,0.0557]
[1734198669397,0.7385827,101020.0,101010.0,0.0557]
[1734198670903,0.67690048,101020.0,101010.0,0.0557]
[1734198671403,0.67690048,101020.0,101010.0,0.09901496]
[1734198672098,0.7385827,101020.0,101010.0,0.09901496]
[1734198672303,0.71756205,101020.0,101010.0,0.0557]
[1734198674609,0.80523893,101020.0,101010.0,0.0557]
[1734198676196,0.71756205,101020.0,101010.0,0.0005]
[1734198680409,0.049498,101010.0,100990.0,0.04331687]
[1734198680597,0.049513,100980.0,100970.0,0.080416]
[1734198680804,0.42248222,100980.0,100970.0,0.13921595]
[1734198681000,0.47199522,100980.0,100970.0,0.12374201]
[1734198681204,0.47199522,100980.0,100970.0,0.13921653]
[1734198681406,0.47207341,100980.0,100970.0,0.13921653]
[1734198681608,0.47207341,100980.0,100970.0,0.13349378]
[1734198683002,0.47207341,100980.0,100970.0,0.195176]
[1734198683412,0.41039119,100980.0,100970.0,0.195176]
[1734198683809,0.41039119,100980.0,100970.0,0.13349378]
[1734198683810,0.55974806,100980.0,100970.0,0.13349378]
[1734198684010,0.55974806,100980.0,100970.0,0.09016777]
[1734198684911,0.55974806,100980.0,100970.0,0.13349378]
[1734198684912,0.47207341,100980.0,100970.0,0.13349378]
[1734198685114,0.47207341,100980.0,100970.0,0.12374201]
[1734198685423,0.92054806,100980.0,100970.0,0.12374201]
[1734198687316,1.0991345,100980.0,100970.0,0.0309]
[1734198687517,1.1629345,100980.0,100970.0,0.0309]
[1734198688017,1.07525985,100980.0,100970.0,0.04637633]
[1734198688515,1.07525985,100980.0,100970.0,0.0309]
[1734198689115,1.08530618,100980.0,100970.0,0.0309]
[1734198690715,1.00636492,100980.0,100960.0,0.051349]
[1734198690921,0.47199922,100970.0,100960.0,0.12797501]
[1734198691314,0.55947518,100970.0,100960.0,0.10012645]
[1734198693928,0.55947518,100970.0,100960.0,0.1001265]
[1734198694122,0.55947518,100970.0,100960.0,0.0668265]
[1734198694727,0.49779296,100970.0,100960.0,0.0178075]
[1734198694918,0.55947518,100970.0,100960.0,0.0178075]
[1734198695424,1.0381715,100970.0,100940.0,0.15887088]
[1734198695725,0.47200922,100950.0,100940.0,0.19027088]
[1734198696026,0.44105049,100950.0,100940.0,0.19027088]
[1734198696528,0.44105049,100950.0,100940.0,0.10713988]
[1734198696529,0.80185049,100950.0,100940.0,0.10713988]
[1734198696820,0.80185049,100950.0,100940.0,0.04343988]
[1734198697019,0.86362538,100950.0,100940.0,0.04343988]
[1734198697221,0.86362538,100950.0,100940.0,0.00010286]
[1734198697426,0.74026094,100950.0,100940.0,0.00010286]
[1734198697619,0.86362538,100950.0,100940.0,0.00010286]
[1734198697816,0.80194316,100950.0,100940.0,0.00010286]
[1734198698017,0.88941912,100950.0,100940.0,0.00010286]
[1734198698524,0.80194316,100950.0,100940.0,0.00010286]
[1734198699923,0.8733878,100950.0,100940.0,0.00010286]
[1734198700622,0.96086376,100950.0,100940.0,0.00010286]
[1734198701225,1.01608576,100950.0,100940.0,0.00010286]
[1734198701425,1.00632334,100950.0,100940.0,0.00010286]
[1734198701624,1.00632334,100950.0,100940.0,0.04951862]
[1734198701827,1.06800556,100950.0,100940.0,0.04951862]
[1734198702420,1.00632334,100950.0,100940.0,0.04951862]
[1734198702623,0.91884738,100950.0,100940.0,0.04951862]
[1734198703028,1.00609293,100950.0,100940.0,0.04951862]
[1734198703528,1.06777515,100950.0,100940.0,0.04951862]
[1734198703829,0.049532,100940.0,100930.0,0.080136]
[1734198704028,0.049537,100930.0,100920.0,0.081841]
[1734198704229,0.47201922,100930.0,100920.0,0.081841]
[1734198704825,0.55926477,100930.0,100920.0,0.081841]
[1734198705231,0.50460446,100930.0,100920.0,0.081841]
[1734198706430,0.45506746,100930.0,100920.0,0.12519073]
[1734198706833,0.50472793,100930.0,100920.0,0.04334973]
[1734198707529,0.59197348,100930.0,100920.0,0.05883279]
[1734198707828,0.59197348,100930.0,100920.0,0.01548306]
[1734198709126,0.50472793,100930.0,100920.0,0.01548306]
[1734198709330,0.62163215,100930.0,100920.0,0.01548504]
[1734198709628,0.62163215,100930.0,100920.0,0.01598504]
[1734198709827,0.70894566,100930.0,100920.0,0.01598504]
[1734198710835,1.03371089,100930.0,100900.0,0.1]
[1734198711027,0.86541446,100910.0,100900.0,0.14335921]
[1734198711229,0.86550752,100910.0,100900.0,0.14335921]
[1734198711631,0.95284749,100910.0,100900.0,0.14335921]
[1734198712136,0.96094749,100910.0,100900.0,0.14335921]
[1734198712342,1.07785171,100910.0,100900.0,0.14335921]
[1734198712636,1.07785171,100910.0,100900.0,0.1]
[1734198712943,0.92586872,100910.0,100900.0,0.24381946]
[1734198713130,0.92586872,100910.0,100900.0,0.35028366]
[1734198713131,0.4481645,100910.0,100900.0,0.35028366]
[1734198713326,0.11690422,100920.0,100900.0,0.96771946]